[Event "Benidorm Open-B 2022"]
[Site "Benidorm"]
[Date "2022.12.08"]
[Round "7.14"]
[White "Garcia Bueno, Juan Pablo"]
[Black "Lopez Palomar, Jose"]
[Result "1/2-1/2"]
[ECO "A49"]
[WhiteElo "1788"]
[BlackElo "1913"]
[Annotator "TA"]
[PlyCount "111"]
[EventDate "2022.12.03"]
[EventType "swiss"]
[EventCountry "ESP"]
[SourceTitle "playchess.com"]
[Source "ChessBase"]
[SourceQuality "1"]
[TimeControl "5400+30"]

{[%evp 14,111,-12,13,96,88,111,86,112,107,84,81,115,116,160,137,164,149,222,189,202,199,224,221,278,157,167,173,165,176,169,126,206,187,160,167,709,114,124,110,115,106,254,254,240,241,216,230,300,324,309,296,362,208,205,201,199,182,191,171,241,228,466,495,491,480,441,0,0,0,172,0,48,0,0,0,0,0,0,0,0,0,0,0,0,0,0,0,0,-2,-2,-14,0,0,0,0,0,0,0,0]} 1. d4 Nf6 2. Nf3 g6 3. g3 Bg7 4. Bg2 c6 5. O-O O-O 6. b3 d5 7. c4 dxc4 8. bxc4 Be6 {D78: Fianchetto Grünfeld: 6 0-0 c6.} (8... c5 $11 {keeps the balance.}) 9. Nbd2 $1 $16 Qc8 {[#]} 10. Bb2 $146 ({Predecessor:} 10. Ba3 Re8 11. e4 Bg4 12. e5 Nfd7 13. Qe1 Nb6 14. Rc1 Bh6 15. Rc3 Qd7 16. Bc1 {½-½ (26) Jimenez Molina,J (2240)-Zepeda,R Mexico City 1997}) 10... Bh3 {White is better.} 11. Re1 Bxg2 12. Kxg2 c5 13. d5 $1 e6 14. e4 exd5 15. cxd5 (15. exd5 Nbd7 $16) 15... Rd8 (15... Nbd7 $16 16. Qb3 Rb8) 16. Qc2 Nbd7 17. a4 b6 18. Nc4 Qb8 19. Nfe5 ({Better is} 19. Rad1 $18) 19... Nxe5 20. Nxe5 Qb7 21. Nc6 Re8 22. Qc4 Qd7 (22... Nd7 $16 {was called for.}) 23. Rad1 Rac8 24. Ne5 {White has more active pieces.} Qd6 {[#]} (24... Qb7 25. Bc3 Nd7 26. Nxd7 Qxd7) 25. Nf3 $2 (25. Nxf7 $1 $18 {[%mdl 512]} Kxf7 (25... Qd7 26. Ng5) 26. e5 Rxe5 27. Bxe5) 25... Nd7 26. Bxg7 Kxg7 27. Qc3+ Ne5 (27... f6 $16) 28. Nd2 $18 {f4 is the strong threat.} f6 29. f4 {Inhibits c4.} Nf7 30. Nf3 Kg8 31. e5 fxe5 32. fxe5 Qd8 33. d6 (33. Rf1 $142) 33... Qd7 34. Qc4 Re6 35. Qd5 Rce8 36. a5 Kg7 (36... h6 $142 37. Rb1 Rb8) 37. Rb1 Qd8 (37... Rb8 {is a better defense.} 38. Ra1 Ree8 39. axb6 Rxb6) 38. axb6 axb6 39. Qb7 g5 {[%cal Bg6g5,Bg5g4][%mdl 32]} 40. Qxb6 $2 (40. Rxb6 g4 41. Nh4 Rxe5 $16) ({White should try} 40. Rf1 $18 Kg8 41. Nd4 $1 {[%mdl 512]}) 40... g4 $11 41. Nh4 {Strongly threatening Qa7.} Qg5 $2 {[#]} (41... Rxe5 $11 {and Black is okay.} 42. Rxe5 Qxb6 43. Rxb6 Nxe5) 42. Qxc5 $2 (42. Qb7 $1 $18 {Black must now prevent Rf1.} Kg8 43. Rf1 (43. d7 Rd8 $16) 43... Nxe5 44. Rbd1) 42... Rxd6 (42... Qd2+ $1 $11 43. Qf2 Qd5+ 44. Kg1 Ng5) 43. Qf2 (43. Qc4 $14 Rxe5 44. Rf1) 43... Rd2 {The position is equal.} 44. Re2 ({But not} 44. Nf5+ $2 Kh8 45. Re2 Rxe2 46. Qxe2 Qxf5 $19) 44... Rxe2 45. Qxe2 Rxe5 46. Qb2 Qf6 47. Rf1 Qc6+ 48. Kg1 {[%cal Of1f7]} Qc5+ 49. Qf2 Qxf2+ 50. Rxf2 {[%mdl 4096] Endgame KRN-KRN} Ng5 {Threatens to win with ...Nh3+.} 51. Kg2 Nh3 52. Ra2 Kf6 53. Ra6+ Kg5 54. Ra2 Kf6 55. Ra6+ Kg5 56. Ra2 {Black escapes into a draw.   Weighted Error Value: White=0.44/Black=0.37} 1/2-1/2

[Event "Benidorm Open-B 2022"]
[Site "Benidorm"]
[Date "2022.12.08"]
[Round "7.15"]
[White "Martin Martin, Luis Vicente"]
[Black "Mateev, Kaloyan Mateev"]
[Result "1/2-1/2"]
[ECO "A41"]
[WhiteElo "1907"]
[BlackElo "1735"]
[Annotator "TA"]
[PlyCount "170"]
[EventDate "2022.12.03"]
[EventType "swiss"]
[EventCountry "ESP"]
[SourceTitle "playchess.com"]
[Source "ChessBase"]
[SourceQuality "1"]
[TimeControl "5400+30"]

{[%evp 9,170,33,38,9,43,24,88,87,72,71,86,43,58,58,58,58,58,58,58,58,47,46,68,25,32,17,58,39,45,10,28,10,10,-13,48,39,86,21,19,19,28,10,10,12,10,10,14,4,4,6,10,10,10,0,19,10,19,13,14,13,13,11,11,16,12,12,12,12,34,12,13,0,0,0,36,28,62,64,61,74,65,40,146,143,133,117,117,117,133,127,111,128,125,26,26,8,8,8,88,88,567,522,927,567,5165,4340,12789,6103,29957,29960,12791,416,335,97,97,97,97,97,97,97,97,97,97,97,97,97,97,97,97,97,1281,1105,997,0,0,0,0,0,0,0,0,0,0,0,0,0,0,0,0,0,0,0,0,0,0,0,0,0,0,0,0,0,0]} 1. d4 d6 2. Bf4 Bf5 3. Nf3 Nf6 4. e3 Nbd7 5. h3 e6 6. Nbd2 {A46: 1 d4 Nf6 2 Nf3 e6: Torre, London and Colle Systems.} Be7 7. Nh4 {[#]} Ne4 $146 (7... Be4 $11 {remains equal.}) ({Predecessor:} 7... Bg6 8. Nxg6 hxg6 9. c3 Nb6 10. a4 O-O 11. a5 Nbd5 12. Bh2 c6 13. Be2 b5 {1-0 (46) Campos,W (1782)-Silva,R (1660) Sao Paulo 2017}) 8. Nxf5 $16 {White is better.} exf5 9. Bd3 d5 10. O-O Bd6 11. Bxd6 Nxd6 12. c4 dxc4 13. Nxc4 Nxc4 14. Bxc4 Nb6 15. Bb3 c6 16. Rc1 (16. Qf3 $5 {[%cal Rf3f5]}) 16... O-O 17. Qf3 Qd7 18. Rc5 g6 19. h4 Qe7 20. h5 Nd7 21. Rc3 Qh4 (21... Nf6 $11) 22. g3 $14 Qh3 (22... Qe4 $14 23. Qxe4 fxe4) 23. Qh1 (23. hxg6 $1 $16 hxg6 24. e4) 23... Qxh1+ $11 24. Kxh1 Nf6 25. hxg6 hxg6 26. Kg2 Kg7 27. Rh1 Rh8 28. Rcc1 Rxh1 29. Rxh1 {[%mdl 4096] Endgame KRB-KRN} Re8 30. Bc4 Ne4 31. Bd3 Rd8 32. Rc1 {[%cal Og3g4]} Re8 33. b4 a6 34. a4 Nd6 35. Be2 Kf6 36. Rc5 Ne4 37. Rc2 Nd6 38. Bf3 Ne4 39. Kf1 Rh8 40. Ke2 Ke6 41. Kd3 Nd6 (41... Ng5 $5 {[%cal Rg5f3]} 42. Bg2 Rh2 $11) 42. Rc5 f6 43. d5+ cxd5 44. Bxd5+ Kd7 45. Rc2 Rc8 ({Black should try} 45... Rb8 $14) 46. Rxc8 $16 {White is more active.} Kxc8 {KB-KN} 47. Kd4 Kc7 48. Kc5 b6+ 49. Kd4 Kd7 50. f3 g5 51. a5 (51. f4 $1 $16) 51... Nb5+ $11 52. Kd3 (52. Kc4 $5 {[%cal Ra5b6]} Nd6+ 53. Kc3 $14) 52... bxa5 53. bxa5 {Bb7 is the strong threat.} Kd6 (53... Na7 $1 $11 {keeps the balance.}) 54. Bb7 $16 Nc7 {[%mdl 8192]} (54... Na7 $16) 55. Kc4 $1 $18 f4 56. exf4 gxf4 57. g4 Ke5 58. Kc5 {White wants to mate with Kb6.} Ke6 59. Kb6 {[%csl LRa6,LRc7]} Kd6 60. Bc8 (60. Bxa6 $142 {White threatens Bb7 and mate.} Nd5+ 61. Kb7) 60... Nd5+ {[#]} 61. Kxa6 $2 (61. Kb7 $1 $18 {and the rest is easy.}) 61... Kc7 $16 62. Bf5 Nc3 63. Bg6 Kc6 64. Be8+ Kc7 65. Bb5 Nd5 66. Ba4 {aiming for Kb5.} Nc3 67. Bb3 Kc6 68. Bf7 Kc7 69. Be8 Kd8 $2 {[%mdl 8192] [#]} (69... Ne2 $16) 70. Kb7 $1 {[%cal Oa5a6] Threatening mate with a6!} Kxe8 $18 {[#] KN-K3P} 71. a6 $2 (71. Kc6 $1 $18 {Intending a6 and mate.} Na2 72. Kd6) 71... Nb5 $11 {The position is equal.} 72. Kc6 (72. Kb6 $5 Nd6 $8 73. Kc7 Nb5+ 74. Kb6 $11) 72... Na7+ 73. Kd5 {And now Ke6 would win.} Ke7 74. Ke4 Ke6 75. Kxf4 Nc6 76. Ke3 Na7 77. Kd4 Kd6 78. f4 Nc6+ 79. Kc4 Na7 80. Kd4 Nc6+ 81. Ke4 {Threatens to win with Kf5.} Ke6 (81... Kc5 82. Kf5 Kb5 83. Kxf6 $18) 82. Kf3 Kf7 83. Kg3 Kg6 84. Kg2 Na7 85. Kf3 Kf7 {Black escapes into a draw.   Weighted Error Value: White=0.26 (precise) /Black=0.40} 1/2-1/2

[Event "Benidorm Open-B 2022"]
[Site "Benidorm"]
[Date "2022.12.09"]
[Round "8.1"]
[White "Goktepe, Derin"]
[Black "Saez Gabikagogeaskoa, Oscar"]
[Result "1-0"]
[ECO "A57"]
[WhiteElo "1828"]
[BlackElo "1941"]
[Annotator "TA"]
[PlyCount "79"]
[EventDate "2022.12.03"]
[EventType "swiss"]
[EventCountry "ESP"]
[SourceTitle "playchess.com"]
[Source "ChessBase"]
[SourceQuality "1"]
[TimeControl "5400+30"]

{[%evp 24,79,25,-11,21,20,25,31,27,-12,-23,-11,14,14,14,0,13,13,13,13,12,12,18,11,12,12,18,11,27,11,11,11,11,11,10,12,11,10,12,4,89,89,208,231,235,182,446,437,439,438,437,334,6103,6095,6070,6070,5210,5210]} 1. d4 Nf6 2. c4 c5 3. d5 b5 4. cxb5 a6 5. b6 e6 6. Nc3 Nxd5 7. Nxd5 exd5 8. Qxd5 Nc6 9. Nf3 Rb8 10. e4 Be7 11. Bc4 O-O 12. O-O Rxb6 13. b3 d6 {A57: Benko/Volga Gambit.} (13... Na5 {simplifies} 14. Qd3 Nxc4 15. bxc4 Rd6) 14. Bb2 Bf6 (14... Be6 {simplifies} 15. Qd3 Nb4 16. Qe2 Bxc4 17. Qxc4 Qd7) 15. Bxf6 (15. Qd2 {keeps more tension.} Bg4 16. Ne1 Bxb2 17. Qxb2 Ne5 18. Be2) 15... Qxf6 {[#] White is slightly better.} 16. e5 $146 (16. Rad1 {with more complications.} Rd8 17. Qh5 Be6 18. Bxe6 Qxe6 19. Ng5) ({Predecessor:} 16. Rad1 Ne7 17. Qh5 Ng6 18. Rd2 Nf4 19. Qh4 Qxh4 20. Nxh4 Re8 21. Rfd1 Rxe4 22. g3 {1-0 (35) Mirzoev,A (2543)-Guidarelli,L (2449) Illes Medes 2006}) 16... Nxe5 17. Nxe5 {[#] Strongly threatening Nf3.} Qxe5 (17... Be6 $5 {[%cal Re6d5]} 18. Qe4 Qxe5 19. Qxe5 dxe5 $15) 18. Qxe5 dxe5 19. Rfe1 Re8 20. Rad1 {[%cal Oe1e5]} Kf8 21. Rd5 {[%csl LRc5,LRe5]} f6 22. Rxc5 Be6 23. Bxe6 Rexe6 $11 {[%mdl 4096] Endgame KRR-KRR} 24. Kf1 Red6 25. Rec1 Rd2 26. R1c2 (26. Rc7 $5 {[%cal Rc7a7]}) 26... Rbd6 27. Rxd2 Rxd2 {KR-KR} 28. Ra5 Rd6 29. Ke2 Ke7 30. Rc5 Kd7 31. Rc3 Ke6 (31... Rc6 $11 {keeps the balance.} 32. Kd3 Rd6+ 33. Ke3 g6) 32. Rc7 $16 Rd7 (32... g5 $16) 33. Rxd7 $18 Kxd7 {[#] KP-KP} 34. Kd3 $1 {Threatens to win with Kc4.} f5 $2 (34... h5) 35. Kc4 Kc6 36. b4 g5 37. a4 {[%cal Ba2a4,Ba4b5,Bb5b6][%mdl 32] aiming for b5+.} h5 $2 (37... Kd6 38. b5 a5) 38. b5+ {White is clearly winning.} axb5+ 39. axb5+ Kd6 40. b6 {Weighted Error Value: White=0.10 (very precise) /Black=0.31} 1-0

[Event "Benidorm Open-B 2022"]
[Site "Benidorm"]
[Date "2022.12.09"]
[Round "8.2"]
[White "Palao, Adriana"]
[Black "Sai Hrushikesh Simhdri"]
[Result "0-1"]
[ECO "B50"]
[WhiteElo "1972"]
[BlackElo "1460"]
[Annotator "TA"]
[PlyCount "90"]
[EventDate "2022.12.03"]
[EventType "swiss"]
[EventCountry "ESP"]
[SourceTitle "playchess.com"]
[Source "ChessBase"]
[SourceQuality "1"]
[TimeControl "5400+30"]

{[%evp 12,90,-2,-4,0,0,0,5,21,35,68,50,43,12,9,-25,0,0,6,0,26,0,0,0,0,-5,-9,-11,0,-10,0,-416,-429,-431,-429,-416,-418,-421,-421,-416,-396,-495,-447,-405,-351,-298,0,-512,-512,-512,-512,-695,-661,-678,-475,-691,-619,-613,-601,-594,-580,-586,-556,-542,-503,-494,-469,-540,-533,-516,-508,-508,-467,-467,-462,-1764,-1652,-1661,-1566,-5265,-1850]} 1. e4 c5 2. Nf3 d6 3. c3 Nf6 4. h3 Nc6 5. Bd3 d5 6. e5 Nd7 7. Qe2 e6 {B50: Sicilian: 2...d6, Miscellaneous.} 8. O-O Qc7 {[%cal Rc6e5]} 9. Re1 c4 {The position is equal.} 10. Bc2 {[#]} a5 $146 ({Predecessor:} 10... Be7 11. b3 b5 12. d4 cxd3 13. Bxd3 b4 14. c4 Nc5 15. cxd5 exd5 16. Bb5 O-O {0-1 (58) Eraschenkov,D (2349)-Perez Ponsa,F (2559) Chess.com INT 2020}) 11. b3 b5 12. bxc4 bxc4 13. Ba3 Ba6 14. Bxf8 Kxf8 15. Na3 (15. Qe3 {simplifies} Qb6 16. Qxb6 Nxb6 17. Nd4) 15... Rb8 16. Rab1 Ke7 17. Qe3 h6 $1 18. Ba4 (18. Qf4 Rxb1 19. Bxb1 Rb8 $15) 18... Rxb1 19. Rxb1 Ncxe5 (19... Rb8 {simplifies} 20. Rxb8 Ncxb8 21. Bxd7 Nxd7 22. g4 Qc5) 20. Nxe5 Nxe5 21. Rb6 $2 {[%mdl 8192] [#]} (21. Nc2 $11 {and White is okay.}) 21... d4 $1 $19 22. Qxd4 (22. cxd4 Qxb6 23. Qxe5 Rd8 $19) 22... Rd8 23. Qe3 Rd3 24. Rxa6 Rxe3 25. dxe3 Nd3 26. Rc6 Qb8 {[#] Threatens to win with ...Qb2.} 27. Bb5 Ne5 28. Ra6 Qc7 (28... Qd8 $19 29. Bxc4 Qd2 30. Rxa5 Kf6) 29. f4 $2 {[%mdl 8192]} (29. Ba4 $1 $11 Qc5 30. Nc2) 29... Qc5 {[%csl LRa3,LRe3] Black is clearly winning.} 30. fxe5 Qxe3+ 31. Kf1 Qc1+ ({Less strong is} 31... Qxc3 32. Ra7+ (32. Nxc4 Qa1+ 33. Ke2 Qxa2+ 34. Nd2 Qd5 $17) 32... Kd8 33. Rd7+ (33. Nxc4 $2 Qd3+ 34. Ke1 Qe4+ 35. Kf1 Qb1+ 36. Ke2 Qxb5 $19) 33... Kc8 34. Nxc4 Qa1+ 35. Kf2 Qxa2+ 36. Rd2 $14) (31... Qxe5 32. Rxa5 Qf4+ 33. Kg1 $11) 32. Ke2 Qb2+ 33. Kf1 (33. Kd1 $142 Qxa3 34. Ra7+ Kd8 35. Rd7+ Kc8 36. Rd2) 33... Qa1+ 34. Ke2 {Ra7+ is the strong threat.} Qxa2+ (34... Qxc3 $2 35. Ra7+ (35. Nxc4 Qc2+ 36. Kf3 Qd3+ 37. Kf2 Qd4+ 38. Kg3 g5 $11) 35... Kd8 36. Rd7+ (36. Nxc4 Qc2+ 37. Ke3 Qc3+ 38. Ke2 Qc2+ 39. Nd2 Qxa2 $11) (36. Ra8+ Kc7 $11) 36... Kc8 37. Nxc4 $18) 35. Ke3 {And now Ra7+ would win.} Qxa3 {[%mdl 4096] Endgame KQ-KRB} 36. Ra7+ Kd8 37. Kd4 Qa2 38. Rd7+ Kc8 39. Rxf7 Qd2+ 40. Kc5 Qxc3 41. Rf8+ Kc7 {( -> ...Qa3+)} 42. Rf7+ Kd8 43. Rf8+ (43. Rd7+ $142 Kc8 44. Kc6 Qxe5 45. Ba6+ Kb8 46. Bb5) 43... Ke7 44. Rc8 Qxe5+ 45. Kxc4 Qd5+ {Weighted Error Value: White=0.82/Black=0.34} 0-1

[Event "Benidorm Open-B 2022"]
[Site "Benidorm"]
[Date "2022.12.09"]
[Round "8.3"]
[White "Tsiapko, Andrii"]
[Black "Izquierdo Carbellido, Pablo"]
[Result "1-0"]
[ECO "E17"]
[WhiteElo "1619"]
[BlackElo "1900"]
[Annotator "TA"]
[PlyCount "84"]
[EventDate "2022.12.03"]
[EventType "swiss"]
[EventCountry "ESP"]
[SourceTitle "playchess.com"]
[Source "ChessBase"]
[SourceQuality "1"]
[TimeControl "5400+30"]

{[%evp 22,84,11,11,26,0,0,0,23,0,0,-16,1,-49,0,0,0,-18,8,2,0,0,0,0,0,0,0,0,0,0,3,5,2,-14,-20,-48,89,9,76,0,89,42,214,198,360,376,402,399,1049,1034,1056,1039,1022,962,944,922,1107,1084,1244,1228,1219,1219,1212,1204,29999]} 1. d4 Nf6 2. Nf3 e6 3. c4 b6 4. g3 Bb7 5. Bg2 Be7 6. Nc3 d5 7. cxd5 exd5 8. O-O O-O 9. Bf4 c6 10. Rc1 Nbd7 {[%cal Bb8d7,Bd7f8,Bf8e6,Be6d4,Bd4c2][%mdl 32]} 11. Qc2 Re8 12. Rfd1 Nf8 {E18: Queen's Indian: Old Main Line (4 g3 Bb7 5 Bg2 Be7 6 0-0 0-0 7 Nc3).} 13. Bh3 Bc8 14. Bg2 Bb7 {The position is equal.} 15. Ne5 Ne6 {[#]} 16. Bh3 $146 ({Predecessor:} 16. a3 Bd6 17. b4 Nxd4 18. Nxc6 Nxc6 19. Nxd5 Bxf4 20. Nxf4 Nd4 21. Qb2 Nxe2+ 22. Nxe2 Qe7 23. Bxb7 Qxb7 24. Nf4 {1-0 (58) Prem,P (2061)-Oro,F (2148) Chess.com INT 2022}) 16... Bd6 {[%cal Oe6d4]} 17. Qa4 (17. e3 $11) 17... b5 (17... c5 $15 18. Bxe6 Rxe6) 18. Qc2 $11 Nxd4 19. Nxf7 Nxc2 (19... Qb6 {looks sharper.} 20. Rxd4 Kxf7 21. Be3 Rxe3 22. fxe3 Be5) 20. Nxd8 Bxf4 (20... Raxd8 {simplifies} 21. Rxc2 Bxf4 22. gxf4 d4) 21. gxf4 Raxd8 {[%cal Ba8d8,Bd8d5,Bd5a5][%mdl 32]} 22. Rxc2 d4 23. Rcd2 b4 24. Na4 Rd5 25. Bg2 Ra5 26. b3 Nd5 27. Bxd5+ Rxd5 28. Rc1 Re7 (28... Ba6 $15 {stays ahead.} 29. Kf1 Bb5) 29. Rc5 ({Better is} 29. Nc5 $16) 29... Red7 {[#]} (29... Ba6 $11) 30. f3 (30. Rc4 $1 $16) 30... Kf7 (30... R7d6 $1 $11 {keeps the balance.}) 31. Kf2 (31. Rc1 $16) 31... Ke6 $2 {[#] This costs Black the game.} (31... Ba6 $14) 32. Rc4 $1 $18 {And now Nc5+ would win.} Kf5 $2 (32... Rc7 {keeps fighting.}) 33. Nc5 ({Weaker is} 33. Rxb4 Ba6 $16) 33... Re7 34. Rdxd4 a5 $2 (34... Rxd4 35. Rxd4 Bc8) 35. e4+ {White is clearly winning.} Kg6 36. exd5 cxd5 37. Rc2 Rc7 38. Rdd2 Bc8 39. Nd3 Rc3 40. Ne5+ Kf5 41. Rxc3 bxc3 42. Rxd5 Kxf4 {Weighted Error Value: White=0.19 (very precise) /Black=0.44} 1-0

[Event "Benidorm Open-B 2022"]
[Site "Benidorm"]
[Date "2022.12.09"]
[Round "8.4"]
[White "Pajuelo Morales, Raul"]
[Black "Aadith R"]
[Result "1-0"]
[ECO "D35"]
[WhiteElo "1890"]
[BlackElo "1714"]
[Annotator "NA RC COMBH"]
[PlyCount "63"]
[EventDate "2022.12.03"]
[EventType "swiss"]
[EventCountry "ESP"]
[SourceTitle "playchess.com"]
[Source "ChessBase"]
[SourceQuality "1"]
[TimeControl "5400+30"]

1. d4 Nf6 2. c4 e6 3. Nc3 d5 4. cxd5 exd5 5. Bg5 Nbd7 6. e3 c6 7. Bd3 Bb4 8. Nge2 Qa5 9. f3 O-O 10. O-O Re8 11. a3 Bd6 12. Qd2 h6 13. Bh4 Qc7 14. h3 Nh5 15. Bf2 Bh2+ 16. Kh1 Ng3+ 17. Nxg3 Bxg3 18. e4 Nf6 19. e5 Nh5 20. Ne2 Bxf2 21. Rxf2 Qe7 22. g4 Qh4 23. Rg2 g5 24. Kh2 Ng7 25. f4 gxf4 26. Rf1 Ne6 27. Nxf4 Nxd4 28. Nh5 Re6 29. Qf4 Qe7 30. Qxd4 Rxe5 31. Re1 f6 32. Nxf6+ 1-0

[Event "Benidorm Open-B 2022"]
[Site "Benidorm"]
[Date "2022.12.09"]
[Round "8.5"]
[White "Selva Salvador, Antonio"]
[Black "Sanabria Taskila, Jenny Maria"]
[Result "1/2-1/2"]
[ECO "A45"]
[WhiteElo "1954"]
[BlackElo "1852"]
[Annotator "TA"]
[PlyCount "80"]
[EventDate "2022.12.03"]
[EventType "swiss"]
[EventCountry "ESP"]
[SourceTitle "playchess.com"]
[Source "ChessBase"]
[SourceQuality "1"]
[TimeControl "5400+30"]

{[%evp 9,80,8,8,11,13,0,15,10,35,10,35,32,36,35,41,25,44,-7,33,-39,-34,-21,-25,-34,-35,-36,-30,-23,-25,-159,-165,-158,-124,-177,-193,-197,-200,-188,-164,-222,-147,-182,-168,-317,-325,-310,-130,-245,-229,-306,-298,-270,-164,-169,-163,-202,-195,-297,-177,-201,-183,-170,-155,-158,-157,-197,-170,-197,-152,-181,-156,-191,-130]} 1. d4 Nf6 2. Bf4 e6 3. e3 c5 4. c3 Be7 5. h3 O-O 6. Bd3 {A45: Trompowsky Attack.} b6 7. Nf3 h6 8. Nbd2 {The position is equal.} cxd4 9. exd4 d6 10. Qe2 Bb7 11. O-O Nbd7 {[#]} 12. a4 $146 ({Predecessor:} 12. Rfe1 Re8 13. a4 a6 14. Bg3 Qc7 15. Rac1 Bf8 16. c4 a5 17. Bb1 g6 18. Ne4 {1-0 (52) Tahbaz,A (2473)-Sjugirov,S (2654) Chess.com INT 2018}) 12... Re8 {[%cal Oe6e5]} 13. a5 {Prevents e5.} ({Better is} 13. Bg3 $14) 13... Bf8 14. axb6 ({White should play} 14. Bg3 $14) 14... e5 $1 $15 15. dxe5 dxe5 16. Nxe5 Nxe5 {[%mdl 64] Remove Defender} (16... Rxe5 17. Bxe5 Nxe5 18. Ba6 Bxg2 19. Kxg2 $16) 17. Bxe5 {[#]} Rxe5 $1 {[%mdl 64]} 18. Qxe5 {[%cal Oe5c7] And now Qc7! would win.} Qxd3 19. Qd4 {[#]} (19. Rxa7 $11 Rxa7 20. bxa7 Qxd2 21. Ra1) 19... Qg6 $1 $17 {[%csl Gb7][%cal Rg6g2][%mdl 1024] Black has strong compensation.} 20. f3 Rc8 $40 {[%mdl 128] Strongly threatening ...Bc5. Black is out for blood.} (20... axb6 21. Qxb6 Rxa1 22. Rxa1 $11) 21. b4 {Inhibits Bc5.} (21. bxa7 $2 Bc5 $19) (21. Ra5 $17 axb6 22. Qxb6) 21... axb6 $19 22. Qxb6 Bd5 23. Qd4 Be6 24. Ne4 (24. Kh1 $142) 24... Nh5 ({Weaker is} 24... Bxh3 25. Nxf6+ gxf6 26. Rf2) 25. Nf2 Be7 {[%cal Oc8c3] White must now prevent ...Rxc3!} 26. Qe4 (26. g4 {keeps fighting.}) 26... Qg3 {[%cal Oh5f4]} ({Not} 26... Rxc3 27. Qxg6 (27. Ra8+ $2 Kh7 $19) 27... fxg6 28. Rfe1 $15) 27. Nh1 Qg5 (27... Qb8 $19 28. Rfd1 Bd8) 28. Ra5 {[#]} (28. f4 $17 {was the only defense.} Qd5 29. Qxd5 Bxd5 30. Ra5) 28... Nf6 $1 {[%mdl 64]} 29. Qd4 (29. Qd3 Bc4) 29... Qg6 30. Nf2 Qc2 31. Rfa1 Rxc3 32. Ra8+ Kh7 {Hoping for ...Rb3.} 33. Re1 (33. R8a7 $142 Rc4 34. Qd3+ Qxd3 35. Nxd3) 33... Rc4 (33... Rb3 $142 34. Rb8 Qg6) 34. Qd3+ {Black is clearly better.} Qxd3 35. Nxd3 Bxb4 36. Nxb4 Rxb4 37. Re2 Nd5 38. Ra1 Kg6 39. Rd2 Kf6 40. Kh2 Rb6 {Weighted Error Value: White=0.44/Black=0.32} (40... g5 $19 41. Raa2 Ne3) 1/2-1/2

[Event "Benidorm Open-B 2022"]
[Site "Benidorm"]
[Date "2022.12.09"]
[Round "8.7"]
[White "Lopez de Turiso, Jose Angel"]
[Black "Pedraza Fernandez, Miguel Angel"]
[Result "1-0"]
[ECO "A54"]
[WhiteElo "1885"]
[BlackElo "1784"]
[Annotator "NA RC COMBH"]
[PlyCount "49"]
[EventDate "2022.12.03"]
[EventType "swiss"]
[EventCountry "ESP"]
[SourceTitle "playchess.com"]
[Source "ChessBase"]
[SourceQuality "1"]
[TimeControl "5400+30"]

1. d4 Nf6 2. c4 d6 3. Nc3 e5 4. Nf3 e4 5. Nd2 Bf5 6. g4 Bxg4 7. Ndxe4 Nxe4 8. Nxe4 Nc6 9. Bg2 h6 10. Ng3 g5 11. h3 Bd7 12. e3 Qe7 13. Bd2 Bg7 14. Bc3 O-O 15. Qd3 Nd8 16. Nf5 Bxf5 17. Qxf5 Qe6 18. Qd3 c6 19. O-O-O Rb8 20. d5 cxd5 21. Bxd5 Qd7 22. h4 Bxc3 23. Qxc3 Ne6 24. hxg5 hxg5 25. Qh8# 1-0

[Event "Benidorm Open-B 2022"]
[Site "Benidorm"]
[Date "2022.12.09"]
[Round "8.8"]
[White "Swapna C N"]
[Black "Nwachukwu, Chino"]
[Result "0-1"]
[ECO "A48"]
[WhiteElo "1481"]
[BlackElo "1885"]
[Annotator "NA RC COMBH"]
[PlyCount "72"]
[EventDate "2022.12.03"]
[EventType "swiss"]
[EventCountry "ESP"]
[SourceTitle "playchess.com"]
[Source "ChessBase"]
[SourceQuality "1"]
[TimeControl "5400+30"]

1. d4 Nf6 2. Nf3 g6 3. Bg5 Ne4 4. Bf4 Bg7 5. e3 d5 6. Bd3 Nd7 7. Nbd2 Nxd2 8. Qxd2 O-O 9. h4 c5 10. c3 Re8 11. Ne5 Nxe5 12. dxe5 d4 13. exd4 cxd4 14. c4 Be6 15. h5 Qc7 16. hxg6 fxg6 17. Qe2 Rf8 18. g3 Bf5 19. Kd2 Rac8 20. Bxf5 Rxf5 21. e6 Qa5+ 22. Kd3 Rxc4 23. Rac1 Rxc1 24. Rxc1 Qb5+ 25. Rc4 Qa6 26. b3 b5 27. Rc7 b4+ 28. Rc4 Rc5 29. Qc2 Rc6 30. Kd2 Rxe6 31. Kd1 Qb7 32. Rc8+ Kf7 33. Qc4 Qh1+ 34. Kc2 Qe4+ 35. Kc1 Qe1+ 36. Kc2 Qxf2+ 0-1

[Event "Benidorm Open-B 2022"]
[Site "Benidorm"]
[Date "2022.12.09"]
[Round "8.9"]
[White "Mallevaey, Guillaume"]
[Black "Spanton, Tim R"]
[Result "1-0"]
[ECO "A26"]
[WhiteElo "1761"]
[BlackElo "1771"]
[Annotator "NA RC COMBH"]
[PlyCount "89"]
[EventDate "2022.12.03"]
[EventType "swiss"]
[EventCountry "ESP"]
[SourceTitle "playchess.com"]
[Source "ChessBase"]
[SourceQuality "1"]
[TimeControl "5400+30"]

1. c4 e5 2. g3 Nc6 3. Bg2 g6 4. Nc3 Bg7 5. d3 d6 6. e4 Nge7 7. Nge2 O-O 8. O-O Be6 9. Nd5 Qd7 10. Rb1 a5 11. a3 Bg4 12. f3 Be6 13. Be3 f5 14. Qd2 Nd4 15. Bxd4 exd4 16. Nef4 Bf7 17. Nxe7+ Qxe7 18. exf5 gxf5 19. Qf2 c5 20. Rfe1 Qf6 21. Nh3 Rae8 22. f4 Re7 23. Rxe7 Qxe7 24. Re1 Qd7 25. Ng5 Kh8 26. Nxf7+ Rxf7 27. Re2 Re7 28. Qe1 Bf6 29. Bd5 Kg7 30. Rxe7+ Qxe7 31. Qxe7+ Bxe7 32. Bxb7 Bd8 33. Kf2 Kf6 34. Ke2 Kg6 35. Bc8 Kf6 36. Kd2 Be7 37. Kc2 Bd8 38. Kb3 Be7 39. Ka4 Bd8 40. Kb5 Kg6 41. Kc6 Be7 42. Kd7 Kf6 43. Bb7 Bf8 44. Bd5 Be7 45. Ke8 1-0